bitfinex-derivatives/quotes_BNBF0:USTF0_20250302
["timestamp","ask_amount","ask_price","bid_price","bid_amount"]
[1740931577442,0.2726276,615.02,613.36,1.037]
[1740931577640,0.2726276,615.01,613.36,1.037]
[1740931577849,0.2726276,615.0,613.36,1.037]
[1740931578038,0.2726276,614.99,613.36,1.037]
[1740931578243,0.2726276,614.98,613.36,1.037]
[1740931578545,0.2726276,614.97,613.36,1.037]
[1740931578742,0.2726276,614.96,613.36,1.037]
[1740931578937,0.2726276,614.95,613.36,1.037]
[1740931579137,0.2726276,614.94,613.36,1.037]
[1740931579438,0.2726276,614.93,613.36,1.037]
[1740931579643,0.2726276,614.92,613.36,1.037]
[1740931579840,0.2726276,614.91,613.36,1.037]
[1740931580240,0.2726276,614.9,613.36,1.037]
[1740931580540,0.2726276,614.89,613.36,1.037]
[1740931580745,0.2726276,614.88,613.36,1.037]
[1740931580945,0.2726276,614.87,613.36,1.037]
[1740931581144,0.2726276,614.86,613.36,1.037]
[1740931581444,0.2726276,614.85,613.36,1.037]
[1740931581742,0.2726276,614.84,613.36,1.037]
[1740931581945,0.2726276,614.83,613.36,1.037]
[1740931582145,0.2726276,614.82,613.36,1.037]
[1740931582443,0.2726276,614.81,613.36,1.037]
[1740931582645,0.2726276,614.8,613.36,1.037]
[1740931582846,0.2726276,614.79,613.36,1.037]
[1740931583039,0.27274757,614.78,613.36,1.037]
[1740931583445,0.27274757,614.77,613.36,1.037]
[1740931583641,0.27274757,614.76,613.36,1.037]
[1740931583845,1.45208309,614.91,613.36,1.037]
[1740931583846,0.27274757,614.75,613.36,1.037]
[1740931584141,0.27274757,614.74,613.36,1.037]
[1740931584344,0.27274757,614.9,613.36,1.037]
[1740931584542,1.45208309,614.91,613.36,1.037]
[1740931584743,0.27261114,614.9,613.37,0.962]
[1740931585445,0.27261114,614.89,613.37,0.962]
[1740931585645,0.27261114,614.88,613.38,0.881]
[1740931585840,0.27261114,614.87,613.38,0.881]
[1740931586041,0.27261114,614.86,613.38,0.881]
[1740931586244,1.45208309,614.91,613.38,0.881]
[1740931586440,0.27270027,614.9,613.38,0.881]
[1740931586648,0.27270027,614.89,613.38,0.881]
[1740931586842,0.27270027,614.88,613.38,0.881]
[1740931587047,0.27270027,614.87,613.38,0.881]
[1740931587348,0.27270027,614.86,613.38,0.881]
[1740931587549,0.27270027,615.46,613.38,0.881]
[1740931587747,0.27270027,615.45,613.38,0.881]
[1740931588047,0.27274851,615.44,613.38,0.881]
[1740931588249,0.27274851,615.43,613.38,0.881]
[1740931588443,1.45208309,615.7,613.38,0.881]
[1740931588444,0.27274851,615.42,613.38,0.881]
[1740931588645,0.27274851,615.41,613.38,0.881]
[1740931588841,0.27274851,615.4,613.38,0.881]
[1740931589042,0.27274851,615.39,613.38,0.881]
[1740931589246,0.27274851,615.38,613.38,0.881]
[1740931589447,0.27274851,615.37,613.38,0.881]
[1740931589649,0.27274851,615.36,613.38,0.881]
[1740931589948,0.27274851,615.35,613.38,0.881]
[1740931590148,0.27274851,615.34,613.38,0.881]
[1740931590543,0.27274851,615.33,613.38,0.881]
[1740931590748,0.27274851,615.32,613.38,0.881]
[1740931590946,0.27274851,615.31,613.38,0.881]
[1740931591145,0.27274851,615.3,613.38,0.881]
[1740931591547,0.27274851,615.29,613.38,0.881]
[1740931591747,0.32506054,615.27,613.39,0.686]
[1740931591943,0.27274851,615.26,613.39,0.686]
[1740931592146,0.27274851,615.25,613.39,0.686]
[1740931592547,0.27274851,615.24,613.4,0.699]
[1740931592748,0.27274851,615.23,613.4,0.699]
[1740931593149,0.27274851,615.22,613.4,0.699]
[1740931593347,0.27274851,615.21,613.4,0.699]
[1740931593547,0.27274851,615.2,613.4,0.699]
[1740931593748,0.27274851,615.19,613.4,0.699]
[1740931593947,0.27274851,615.18,613.4,0.699]
[1740931594146,0.27274851,615.17,613.4,0.699]
[1740931594347,0.27274851,615.16,613.4,0.699]
[1740931594546,0.27274851,615.15,613.4,0.699]
[1740931594743,0.32506054,615.27,613.4,0.699]
[1740931594943,0.27294646,615.26,613.4,0.699]
[1740931595149,1.45208309,615.21,613.4,0.699]
[1740931595349,0.27294646,615.2,613.4,0.699]
[1740931595549,0.27294646,615.19,613.4,0.699]
[1740931595850,0.27294646,615.18,613.4,0.699]
[1740931596250,0.27294646,615.17,613.4,0.699]
[1740931596450,0.27294646,615.16,613.4,0.699]
[1740931596652,0.27294646,615.15,613.4,0.699]
[1740931596846,0.27294646,615.14,613.4,0.699]
[1740931597153,0.27294646,615.13,613.4,0.699]
[1740931597354,0.27294646,615.12,613.4,0.699]
[1740931597551,0.27294646,615.11,613.4,0.699]
[1740931597752,0.27294646,615.1,613.4,0.699]
[1740931598048,0.27294646,615.09,613.4,0.699]
[1740931598353,1.45208309,614.57,613.4,0.699]
[1740931598549,0.27294646,614.56,613.4,0.699]
[1740931598749,0.27294646,614.55,613.4,0.699]
[1740931598947,0.27294646,614.54,613.4,0.699]
[1740931599147,1.45208309,614.57,613.4,0.699]
[1740931599354,0.27301022,614.53,613.4,0.699]
[1740931599547,0.32546256,614.51,613.4,0.699]
[1740931599752,0.27301022,614.5,613.4,0.699]
[1740931599952,0.27293266,614.49,613.4,0.699]
[1740931600151,0.27293266,614.48,613.4,0.699]
[1740931600356,0.27293266,614.47,613.4,0.699]
[1740931600558,0.27293266,614.46,613.4,0.699]
[1740931600753,0.27293266,614.45,613.4,0.699]
[1740931601059,0.27293266,614.44,613.4,0.699]
[1740931601357,0.27293266,614.43,613.4,0.699]
[1740931601560,0.32546256,614.51,613.4,0.699]
[1740931601754,0.27282945,614.5,613.4,0.699]
[1740931602952,0.32546256,614.51,613.4,0.699]
[1740931602953,0.27282945,614.49,613.4,0.699]
[1740931603157,0.27282945,614.48,613.4,0.699]
[1740931603354,0.27282945,614.47,613.4,0.699]
[1740931603562,0.27282945,614.5,613.4,0.699]
[1740931603756,0.32546256,614.51,613.4,0.699]
[1740931603757,0.27282945,614.49,613.4,0.699]
[1740931603957,0.27282945,614.48,613.4,1.625]
[1740931604260,0.27282945,614.47,613.4,1.625]
[1740931604460,0.27282945,614.46,613.4,1.625]
[1740931604656,0.27282945,614.45,613.4,1.625]
[1740931604857,0.32546256,614.51,613.4,1.625]
[1740931605059,0.27281587,614.5,613.4,1.625]
[1740931605459,0.27281587,614.49,613.4,1.625]
[1740931605661,0.27281587,614.48,613.4,1.625]
[1740931605860,0.27281587,614.5,613.4,1.625]
[1740931606161,0.27281587,614.49,613.4,1.625]
[1740931606354,0.27281587,614.48,613.4,1.625]
[1740931606555,0.27281587,614.5,613.4,1.625]
[1740931606853,0.27281587,614.49,613.4,1.625]
[1740931607054,0.32546256,614.51,613.4,1.625]
[1740931607055,0.27281587,614.5,613.4,1.625]
[1740931607261,0.27281587,614.49,613.4,1.625]
[1740931607453,0.27281587,614.5,613.4,1.625]
[1740931607655,0.27281587,614.5,613.4,2.42]
[1740931608454,0.27267821,614.49,613.4,2.42]
[1740931608657,0.27267821,614.5,613.4,2.42]
[1740931611864,0.32546256,614.51,613.4,2.42]
[1740931612062,0.27247181,614.5,613.4,2.42]
[1740931612468,0.32546256,614.51,613.4,2.42]
[1740931612864,0.32546256,614.51,613.41,0.29931272]
[1740931614065,0.32546256,614.51,613.41,0.62535892]
[1740931614366,0.32546256,614.51,613.42,0.29931272]
[1740931615165,0.32546256,614.51,613.41,0.3260462]
[1740931615365,0.32546256,614.51,613.42,0.29923229]
[1740931616369,0.32546256,614.51,613.42,1.38123229]
[1740931616770,1.45208309,616.42,613.43,0.29923229]
[1740931616971,0.27229771,616.41,613.44,0.29921885]
[1740931617169,0.27229771,616.4,613.43,0.29921885]
[1740931617371,0.27229771,616.39,613.44,0.29921885]
[1740931617567,0.27229771,616.38,613.43,0.29921885]
[1740931617771,0.32454887,616.24,613.44,0.29921885]
[1740931617970,0.27229771,616.23,613.43,0.29921885]
[1740931618171,0.27229771,616.22,613.44,0.29921885]
[1740931618371,0.27229771,616.21,613.43,0.29921885]
[1740931618567,0.27229771,616.21,613.45,0.29921885]
[1740931618770,0.27229771,616.2,613.46,0.29921885]
[1740931618975,0.27229771,616.19,613.43,0.29921885]
[1740931619171,0.32454887,616.24,613.44,0.29921885]
[1740931619172,0.27229771,616.18,613.44,0.29921885]
[1740931619365,0.27229771,616.17,613.45,0.29921885]
[1740931619571,0.27229771,616.16,613.43,0.29921885]
[1740931619770,0.27229771,616.15,613.44,0.29921885]
[1740931619972,0.27229771,616.14,613.45,0.29921885]
[1740931620174,0.27229771,616.13,613.43,0.29921885]
[1740931620474,0.27229771,616.12,613.44,0.29921885]
[1740931620673,0.27229771,616.11,613.45,0.29921885]
[1740931620867,0.32454887,616.24,613.46,0.29921885]
[1740931620868,0.27229771,616.1,613.46,0.29921885]
[1740931621069,0.27229771,616.09,613.46,0.29921885]
[1740931621268,0.27229771,616.08,613.46,0.29921885]
[1740931621674,0.27229771,616.07,613.46,0.29921885]
[1740931621872,0.27229771,616.06,613.46,0.29921885]
[1740931622274,0.27229771,616.05,613.46,0.29921885]
[1740931622470,0.27229771,616.04,613.46,0.29921885]
[1740931622774,0.27229771,616.03,613.46,0.29921885]
[1740931622975,0.27229771,616.02,613.46,0.29921885]
[1740931623172,0.27217898,616.01,613.47,0.29909842]
[1740931623476,0.27217898,616.01,613.45,1.09]
[1740931623477,0.27217898,616.0,613.48,0.29909842]
[1740931623677,0.27217898,615.99,613.49,0.29909842]
[1740931623879,0.27217898,615.98,613.5,0.29909842]
[1740931624174,0.27217898,615.97,613.51,0.29909842]
[1740931624380,0.27217898,616.23,613.46,0.29909842]
[1740931624573,0.27217898,616.22,613.47,0.29909842]
[1740931624777,0.27217898,616.21,613.48,0.29909842]
[1740931625177,0.27217898,616.2,613.49,1.41409842]
[1740931625378,0.27217898,616.23,613.5,0.29909842]
[1740931625575,0.27217898,616.22,613.51,0.29909842]
[1740931625772,0.27217898,616.23,613.52,0.29909842]
[1740931625976,0.27217898,616.23,613.53,0.29909842]
[1740931626174,0.27217898,616.23,613.54,0.29909842]
[1740931626478,0.27217898,616.23,613.55,0.29909842]
[1740931626680,0.27217898,616.23,613.56,0.29909842]
[1740931626880,0.27217898,616.23,613.57,0.29909842]
[1740931627073,0.27217898,616.23,613.58,0.29909842]
[1740931627278,0.27217898,616.23,613.59,0.29909842]
[1740931627479,0.27217898,616.23,613.6,0.29909842]
[1740931627680,0.27217898,616.23,613.61,0.29909842]
[1740931627881,0.27217898,616.23,613.62,0.29909842]
[1740931628081,0.27217898,616.23,613.63,0.29909842]
[1740931628282,0.27217898,616.23,613.64,0.29909842]
[1740931628480,0.27217898,616.23,613.65,0.92550541]
[1740931628679,0.27217898,616.23,613.66,0.92550541]
[1740931628881,0.32454887,616.24,613.67,0.29909842]
[1740931629083,0.32454887,616.24,613.68,0.29909842]
[1740931629280,0.32454887,616.24,613.69,0.29909842]
[1740931629585,0.32454887,616.24,613.7,0.29909842]
[1740931629785,0.32454887,616.24,613.71,0.29909842]
[1740931629982,0.32454887,616.24,613.49,1.74140699]
[1740931629983,0.32454887,616.24,613.72,0.29909842]
[1740931630286,0.32454887,616.24,613.73,0.9220933]
[1740931630582,0.32454887,616.24,613.74,0.29850727]
[1740931630793,0.32454887,616.24,613.75,0.29850727]
[1740931631088,0.32454887,616.24,613.76,0.29850727]
[1740931631287,0.32454887,616.24,613.77,0.29850727]
[1740931631489,0.32454887,616.24,613.78,0.29850727]
[1740931631682,0.32454887,616.24,613.79,0.29850727]
[1740931631890,0.32454887,616.24,613.8,0.29850727]
[1740931632085,0.32454887,616.24,613.81,0.29850727]
[1740931632291,0.32454887,616.24,613.82,0.29850727]
[1740931632583,0.32454887,616.24,613.83,0.29850727]
[1740931632784,0.32454887,616.24,613.49,1.115]
[1740931632785,0.32454887,616.24,613.84,0.29850727]
[1740931633088,0.32454887,616.24,613.85,0.29850727]
[1740931633291,0.32454887,616.24,613.49,1.115]
[1740931633292,0.32454887,616.24,613.86,0.29850727]
[1740931633482,0.32454887,616.24,613.97,0.32574881]
[1740931634684,0.32454887,616.24,613.98,0.29850727]
[1740931634990,0.32454887,616.24,613.99,0.29850727]
[1740931635192,0.32454887,616.24,614.0,0.29850727]
[1740931635386,0.32454887,616.24,614.01,0.29850727]
[1740931635689,0.32454887,616.24,614.02,0.29850727]
[1740931635892,0.32454887,616.24,613.97,0.32574881]
[1740931636089,0.32454887,616.24,613.98,0.92148222]
[1740931636295,0.32454887,616.24,613.99,0.2984259]
[1740931636487,0.32454887,616.24,614.0,0.2984259]
[1740931636690,0.32454887,616.24,614.01,0.2984259]
[1740931636889,0.32454887,616.24,614.02,0.2984259]
[1740931637086,0.32454887,616.24,614.03,0.2984259]
[1740931637292,0.32454887,616.24,614.04,0.2984259]
[1740931637592,0.32454887,616.24,613.97,0.32574881]
[1740931637787,0.32454887,616.24,613.98,0.92179977]
[1740931637992,0.32454887,616.24,613.99,0.29847408]
[1740931638192,0.32454887,616.24,614.0,0.29847408]
[1740931638399,0.32454887,616.24,614.01,0.29847408]
[1740931638594,0.32454887,616.24,614.02,0.29847408]
[1740931638894,0.32454887,616.24,614.03,0.29847408]
[1740931639094,0.32454887,616.24,614.04,0.29847408]
[1740931639294,0.32454887,616.24,614.05,0.29847408]
[1740931639495,0.32454887,616.24,614.06,0.29847408]
[1740931639694,0.32454887,616.24,614.16,0.32564803]
[1740931639896,0.32454887,616.24,614.17,0.29847408]
[1740931640596,1.45208309,619.42,614.17,0.29847408]
[1740931640797,0.27155541,619.41,614.17,0.29847408]
[1740931640991,0.27155541,619.41,614.18,0.29847408]
[1740931641196,0.27155541,619.4,614.19,0.29847408]
[1740931641398,0.27155541,619.39,614.2,0.92179977]
[1740931641596,0.27155541,619.38,614.21,0.92179977]
[1740931641792,0.27155541,619.37,614.22,0.92179977]
[1740931641992,0.27155541,619.36,614.23,0.92179977]
[1740931642196,0.27155541,619.35,614.24,0.29847408]
[1740931642397,0.32304437,619.11,614.25,0.29847408]
[1740931642697,0.32304437,619.11,614.2,0.946]
[1740931642698,0.27155541,619.1,614.26,0.29847408]
[1740931642894,0.27155541,619.09,614.27,0.29847408]
[1740931643098,0.27155541,619.08,614.28,0.29847408]
[1740931643297,0.27155541,619.07,614.29,0.29847408]
[1740931643494,0.27155541,619.06,614.3,0.29847408]
[1740931643695,0.27155541,619.05,614.31,0.29847408]
[1740931643896,0.27155541,619.04,614.21,0.29847408]
[1740931644099,0.27155541,619.03,614.22,0.29847408]
[1740931644398,0.27155541,619.02,614.23,0.29847408]
[1740931644595,0.27155541,619.01,614.24,0.29847408]
[1740931644798,0.27155541,619.0,614.25,0.29847408]
[1740931645099,0.27155541,618.99,614.26,0.29847408]
[1740931645297,0.27155541,618.98,614.27,0.29847408]
[1740931645494,0.27155541,618.97,614.28,0.29847408]
[1740931645698,0.27155541,618.96,614.29,0.29847408]
[1740931645899,0.27155541,618.95,614.3,0.29847408]
[1740931646097,1.45208309,619.05,614.31,0.29847408]
[1740931646098,0.27155541,618.94,614.31,0.29847408]
[1740931646293,0.27155541,618.93,614.32,0.29847408]
[1740931646497,0.27155541,618.92,614.33,0.29847408]
[1740931646699,0.27155541,618.91,614.33,0.29847408]
[1740931646898,0.27155541,618.9,614.34,0.29847408]
[1740931647095,0.27155541,618.89,614.35,0.29847408]
[1740931647299,0.27155541,618.88,614.36,0.29847408]
[1740931647501,0.27155541,618.87,614.37,0.29847408]
[1740931647698,0.27155541,618.86,614.21,0.29847408]
[1740931647897,0.27155541,618.85,614.38,1.039]
[1740931648095,0.27155541,618.84,614.39,0.29847408]
[1740931648400,0.27155541,618.83,614.39,0.29847408]
[1740931648701,0.27155541,618.82,614.39,0.29847408]
[1740931648898,0.27155541,618.81,614.39,0.29847408]
[1740931649102,0.27155541,618.8,614.39,0.29847408]
[1740931649494,0.27155541,618.79,614.39,0.29847408]
[1740931649695,0.27155541,618.78,614.39,0.29847408]
[1740931649901,0.27155541,618.77,614.39,0.29847408]
[1740931650104,0.27155541,618.76,614.39,0.29847408]
[1740931650400,0.27155541,618.75,614.39,0.29847408]
[1740931650596,0.27155541,618.74,614.4,0.29847408]
[1740931650800,1.45208309,618.79,614.38,1.039]
[1740931650801,0.27155541,618.73,614.39,0.29847408]
[1740931650997,0.27155541,618.73,614.4,0.29847408]
[1740931651200,0.27155541,618.72,614.39,0.29847408]
[1740931651395,0.27155541,618.71,614.39,0.29847408]
[1740931651601,0.27155541,618.7,614.39,0.29847408]
[1740931651800,0.27155541,618.69,614.39,0.29847408]
[1740931652103,0.27155541,618.68,614.39,0.29847408]
[1740931652297,0.27155541,618.67,614.39,0.29847408]
[1740931652499,1.45208309,618.79,614.39,0.29847408]
[1740931652500,0.27155541,618.66,614.39,0.29847408]
[1740931652703,1.45208309,618.79,614.38,1.039]
[1740931653002,1.45208309,617.75,614.39,0.2987508]
[1740931653203,0.27183581,617.74,614.39,1.3987508]
[1740931653504,0.27183581,617.73,614.4,0.2987508]
[1740931653801,0.27183581,617.72,614.4,0.2987508]
[1740931653998,0.27183581,617.71,614.4,0.2987508]
[1740931654199,0.27183581,617.7,614.4,0.2987508]
[1740931654401,0.27183581,617.69,614.4,0.2987508]
[1740931654598,0.27183581,617.68,614.4,0.2987508]
[1740931654802,0.27183581,617.67,614.4,0.2987508]
[1740931655003,0.27183581,617.66,614.4,0.2987508]
[1740931655302,0.27183581,617.65,614.4,0.2987508]
[1740931655503,0.27183581,617.64,614.4,0.2987508]
[1740931655701,0.27183581,617.63,614.4,0.2987508]
[1740931655904,0.27183581,617.62,614.4,1.0947508]
[1740931656206,0.27183581,617.61,614.41,0.2987508]
[1740931656406,0.27183581,617.6,614.41,0.2987508]
[1740931656605,0.27183581,617.59,614.41,0.2987508]
[1740931656909,0.27183581,617.58,614.41,0.2987508]
[1740931657103,0.27183581,617.57,614.41,0.2987508]
[1740931657409,0.27183581,617.56,614.41,0.2987508]
[1740931657604,0.27183581,617.55,614.41,0.2987508]
[1740931657907,0.27183581,617.54,614.42,0.2987508]
[1740931658102,0.27183581,617.53,614.43,0.2987508]
[1740931658303,0.27183581,617.52,614.41,0.2987508]
[1740931658500,0.27183581,617.51,614.41,0.2987508]
[1740931658703,0.27183581,617.5,614.41,0.2987508]
[1740931658907,0.27183581,617.49,614.41,0.2987508]
[1740931659109,0.27183581,617.48,614.41,0.2987508]
[1740931659308,0.27183581,617.47,614.41,0.2987508]
[1740931659607,1.45208309,617.21,614.41,0.2987508]
[1740931659806,0.27183581,617.2,614.42,0.2987508]
[1740931659999,0.27183581,617.19,614.43,0.2987508]
[1740931660205,0.27183581,617.18,614.44,0.2987508]
[1740931660508,0.27183581,617.17,614.45,0.2987508]
[1740931660707,0.27183581,617.16,614.41,0.2987508]
[1740931660904,0.27183581,617.15,614.42,0.2987508]
[1740931661106,0.27183581,617.14,614.41,0.2987508]
[1740931661306,0.27183581,617.13,614.41,0.2987508]
[1740931661503,0.27183581,617.12,614.41,0.2987508]
[1740931661703,0.27183581,617.11,614.41,0.2987508]
[1740931661909,0.27183581,617.1,614.47,1.16731834]
[1740931662208,0.27183581,617.09,614.48,0.2987508]
[1740931662409,1.45208309,617.26,614.47,1.16731834]
[1740931662609,0.27174208,617.25,614.48,0.29865571]
[1740931662809,0.27174208,617.24,614.48,0.29865571]
[1740931663006,0.27174208,617.23,614.48,0.29865571]
[1740931663207,0.27174208,617.22,614.48,0.29865571]
[1740931663410,0.27174208,617.21,614.48,0.29865571]
[1740931663710,0.27174208,617.2,614.48,0.29865571]
[1740931663911,0.27174208,617.19,614.48,0.29865571]
[1740931664109,0.27174208,617.18,614.47,1.16731834]
[1740931664304,0.27174208,617.17,614.47,1.16731834]
[1740931664505,0.27174208,617.16,614.47,1.16731834]
[1740931664707,0.27174208,617.15,614.46,1.16731834]
[1740931664911,0.27174208,617.14,614.46,1.16731834]
[1740931665111,0.27174208,617.13,614.46,1.16731834]
[1740931665410,0.27174208,617.12,614.46,1.16731834]
[1740931665612,0.27174208,617.11,614.46,1.16731834]
[1740931665813,0.27174208,617.1,614.47,0.29885769]
[1740931666013,0.27174208,617.09,614.47,0.29885769]
[1740931666209,0.27174208,617.08,614.47,0.29885769]
[1740931666411,0.27174208,617.07,614.46,1.16731834]
[1740931666618,0.27174208,617.06,614.48,0.977]
[1740931666915,0.27174208,617.05,614.48,0.977]
[1740931667112,0.27174208,617.04,614.49,1.004]
[1740931667312,0.27174208,617.03,614.49,1.004]
[1740931667612,0.27174208,617.02,614.49,1.004]
[1740931667813,0.27174208,617.01,614.49,1.004]
[1740931668012,0.27210803,617.0,614.49,1.004]
[1740931668213,0.27210803,616.99,614.49,1.004]
[1740931668414,0.27210803,616.98,614.49,1.004]
[1740931668614,0.27210803,616.97,614.49,1.004]
[1740931668812,0.27210803,616.96,614.49,1.004]
[1740931669012,0.27210803,616.95,614.49,1.004]
[1740931669214,0.27210803,616.94,614.49,1.004]
[1740931669414,0.27210803,616.93,614.49,1.004]
[1740931669718,0.2722456,616.92,614.49,1.004]
[1740931670014,0.2722456,616.91,614.49,1.004]
[1740931670214,0.2722456,616.9,614.49,1.004]
[1740931670415,0.2722456,616.89,614.49,1.004]
[1740931670617,0.2722456,616.88,614.49,1.004]
[1740931670919,0.2722456,616.87,614.49,1.004]
[1740931671110,0.2722456,616.86,614.49,1.004]
[1740931671311,1.45208309,616.67,614.49,1.004]
[1740931671512,0.27207688,616.66,614.49,1.004]
[1740931671717,0.27207688,616.65,614.49,1.004]
[1740931671916,0.27207688,616.64,614.49,1.004]
[1740931672114,0.27207688,616.63,614.49,1.004]
[1740931672315,0.27207688,616.62,614.49,1.004]
[1740931672514,0.27207688,616.61,614.5,0.29884566]
[1740931672815,0.27207688,616.6,614.5,0.29884566]
[1740931673019,0.27207688,616.59,614.5,0.29884566]
[1740931673215,0.27207688,616.58,614.5,0.29884566]
[1740931673421,0.27207688,616.57,614.5,0.29884566]
[1740931673624,0.27207688,616.56,614.5,0.29884566]
[1740931673822,0.27207688,616.55,614.49,1.004]
[1740931674019,0.27207688,616.54,614.49,1.004]
[1740931674219,0.27207688,616.53,614.5,1.144]
[1740931674520,0.27207688,616.52,614.5,1.144]
[1740931674725,0.27207688,616.51,614.5,1.144]
[1740931674919,0.27207688,616.5,614.51,0.29881568]
[1740931675122,0.27207688,616.49,614.51,0.29881568]
[1740931675324,0.27207688,616.48,614.51,0.29881568]
[1740931675523,0.27207688,616.47,614.51,0.29881568]
[1740931675723,0.27207688,617.38,614.51,0.29881568]
[1740931676027,0.27207688,617.37,614.51,0.29881568]
[1740931676323,0.27207688,617.36,614.51,0.29881568]
[1740931676620,1.45208309,617.37,614.5,1.144]
[1740931676824,0.27171165,617.36,614.51,0.298625]
[1740931677023,0.27171165,617.35,614.51,0.298625]
[1740931677220,0.27171165,617.34,614.51,0.298625]
[1740931677421,0.27171165,617.33,614.51,0.298625]
[1740931677619,0.27171165,617.32,614.51,0.298625]
[1740931677824,0.27171165,617.31,614.51,0.298625]
[1740931678024,0.27171165,617.3,614.51,0.298625]
[1740931678225,0.27171165,617.29,614.51,0.298625]
[1740931678520,0.27171165,617.28,614.51,0.298625]
[1740931678823,0.27171165,617.27,614.51,0.298625]
[1740931679025,0.27171165,617.26,614.51,0.298625]
[1740931679226,0.27171165,617.25,614.51,0.298625]
[1740931679419,0.27171165,617.24,614.51,0.298625]
[1740931679624,0.27171165,617.23,614.51,0.298625]
[1740931680026,0.27171165,617.22,614.51,0.298625]
[1740931680326,0.27171165,617.21,614.51,0.298625]
[1740931680628,0.27171165,617.2,614.52,0.8]
[1740931680926,0.27171165,617.19,614.53,0.298625]
[1740931681127,0.27171165,617.18,614.53,0.298625]
[1740931681324,0.27171165,617.17,614.53,0.298625]
[1740931681524,0.27171165,617.16,614.53,0.298625]
[1740931681721,0.27171165,617.15,614.53,0.298625]
[1740931681926,0.27171165,617.14,614.53,0.298625]
[1740931682126,0.27171165,617.13,614.53,0.298625]
[1740931682428,0.27171165,617.12,614.53,0.298625]
[1740931682927,0.27171165,617.11,614.52,0.8]
[1740931683129,0.27171165,617.1,614.52,0.8]
[1740931683328,0.27171165,617.09,614.52,0.8]
[1740931683527,0.27171165,617.08,614.52,0.8]
[1740931683825,0.27171165,617.07,614.52,0.8]
[1740931684021,0.27171165,617.06,614.52,0.8]
[1740931684221,0.27171165,617.05,614.52,0.8]
[1740931684424,0.27171165,617.04,614.52,0.8]
[1740931684626,1.45208309,616.8,614.53,0.29881613]
[1740931684825,0.27171165,616.79,614.52,0.8]
[1740931685027,0.27171165,616.78,614.52,0.8]
[1740931685222,0.27171165,616.77,614.52,0.8]
[1740931685422,0.27171165,616.76,614.52,0.8]
[1740931685625,0.27171165,616.75,614.52,0.8]
[1740931685827,0.27171165,616.74,614.52,0.8]
[1740931686022,1.45208309,616.8,614.52,0.8]
[1740931686228,0.27198617,616.79,614.52,0.8]
[1740931686425,0.27198617,616.78,614.52,0.8]
[1740931686630,0.27198617,616.77,614.52,0.8]
[1740931686827,0.27198617,616.76,614.52,0.8]
[1740931687026,0.27198617,616.75,614.52,0.8]
[1740931687334,0.27198617,616.74,614.52,0.8]
[1740931687530,0.27198617,616.73,614.52,0.8]
[1740931687732,0.27198617,616.72,614.52,0.8]
[1740931688033,0.27198617,616.71,614.52,0.8]
[1740931688230,0.27198617,617.07,614.52,0.8]
[1740931688431,1.45208309,617.08,614.52,0.8]
[1740931688630,0.27183007,617.07,614.53,0.29874581]
[1740931688826,0.27183007,617.06,614.53,0.29874581]
[1740931689030,0.27183007,617.05,614.53,1.16874581]
[1740931689231,0.27183007,617.04,614.54,0.29874581]
[1740931689433,0.27183007,617.03,614.54,0.29874581]
[1740931689934,0.27183007,617.02,614.54,0.29874581]
[1740931690135,0.27183007,617.01,614.54,0.29874581]
[1740931690335,0.27183007,617.0,614.54,0.29874581]
[1740931690632,0.27183007,616.99,614.53,0.87]
[1740931690832,0.27183007,616.98,614.53,0.87]
[1740931691033,0.32422267,616.86,614.53,0.87]
[1740931691233,0.27183007,616.85,614.53,0.87]
[1740931691429,0.27183007,616.84,614.54,0.29877501]
[1740931691627,0.27183007,616.83,614.54,0.29877501]
[1740931691829,0.27183007,616.82,614.54,0.29877501]
[1740931692034,0.27183007,616.81,614.54,0.29877501]
[1740931692224,0.32422267,616.86,614.54,0.29877501]
[1740931692225,0.27183007,616.8,614.54,0.29877501]
[1740931692427,0.27183007,616.79,614.54,0.29877501]
[1740931692631,0.27183007,616.78,614.54,0.29877501]
[1740931692831,0.27183007,616.77,614.54,0.29877501]
[1740931693033,0.32422267,616.86,614.53,0.87]
[1740931693333,0.27191327,616.85,614.53,0.87]
[1740931693534,0.27191327,616.84,614.53,0.87]
[1740931693735,0.27191327,616.83,614.53,0.87]
[1740931693931,0.27191327,616.82,614.53,0.87]
[1740931694235,0.32422267,616.86,614.53,0.87]
[1740931694236,0.27191327,616.81,614.53,0.87]
[1740931694428,0.27191327,616.8,614.53,0.87]